Cogmind - Beta 12 @@@ ROGUE MODE // 2023.07.11 @ 09:53:36 Player: Horse Result: Destroyed by D-53 Grenadier with Mini Grenade Launcher Performance ------------- Evolutions (0) 0 Regions Visited (2) 400 Robots Destroyed (36) 180 Value Destroyed (546) 546 Prototype IDs (3) 60 Alien Tech Used (0) 0 Bonus (-301) -301 TOTAL SCORE: 885 Bonus ------- High Alert Combat Kills 8 Friendly Fire -309 Cogmind --------- Core Integrity 0/250 Matter 300/300 Energy 99/100 System Corruption 0% Temperature Cool (0) Movement Rolling (95) Ox1 Location -10/Mines Parts ------- > --- POWER (1) -------- (None) > --- PROPULSION (2) --- Wheel > --- UTILITY (2) ------ Medium Storage Unit Medium Storage Unit > --- WEAPON (2) ------- (None) > --- INVENTORY (10) --- Improved Heat Sink Disposable Heat Sink Core Shielding Weapon Shielding Medium Laser Beamcaster Assault Rifle Grenade Launcher Plasma Cutter Peak State ------------ > --- POWER ------------ Light Ion Engine > --- PROPULSION ------- Wheel Wheel > --- UTILITY ---------- Medium Storage Unit Medium Storage Unit > --- WEAPON ----------- Beamcaster Plasma Cutter > --- INVENTORY -------- Improved Heat Sink Disposable Heat Sink Core Shielding Weapon Shielding Medium Laser Assault Rifle Grenade Launcher Plasma Cutter Plasma Cutter Plasma Cutter [Rating: 13] Favorites ----------- Power Light Ion Engine Engine Light Ion Engine Propulsion Wheel Wheel Wheel Utility Medium Storage Unit Storage Medium Storage Unit Weapon Medium Laser Energy Gun Medium Laser Ballistic Gun Assault Rifle Launcher Grenade Launcher Special Weapon Plasma Cutter Build | -11 -10 -10 ------- Run | Jun Mat Min Slots Evolved . | . . . Power . | . . . Propulsion . | . . . Utility . | . . . Weapon . | . . . Parts Attached 38 | 6 25 7 Power 2 | . 2 . Engine 2 | . 2 . Core . | . . . Reactor . | . . . Propulsion 6 | 2 4 . Treads . | . . . Leg . | . . . Wheel 6 | 2 4 . Hover . | . . . Flight . | . . . Utility 4 | 2 2 . Device . | . . . Storage 4 | 2 2 . Processor . | . . . Hackware . | . . . Protection . | . . . Artifact . | . . . Weapon 26 | 2 17 7 Energy Gun 9 | 2 6 1 Energy Cannon . | . . . Ballistic Gun 1 | . . 1 Ballistic Cannon . | . . . Launcher 6 | . 6 . Special Weapon 10 | . 5 5 Impact Weapon . | . . . Slashing Weapon . | . . . Piercing Weapon . | . . . Special Melee Weapon . | . . . Unidentified Prototypes . | . . . Parts Lost 6 | . 1 5 Power 2 | . 1 1 Propulsion 1 | . . 1 Utility . | . . . Weapon 3 | . . 3 Highest Loss Streak 5 | . 1 5 To Critical Strikes . | . . . Average Slot Usage (%) 97 | . 96 100 Engine 12 | . 11 14 Wheel 28 | . 28 28 Storage 28 | . 28 28 Energy Gun 17 | . 22 7 Ballistic Gun 1 | . . 4 Launcher 1 | . 1 . Special Weapon 7 | . 3 15 Naked Turns . | . . . Heaviest Build 30 | 13 28 30 Greatest Support 26 | 26 26 20 Greatest Overweight (x) 1 | . 1 1 Average Overweight (x) . | . . 1 Largest Inventory Capacity 10 | 8 10 10 Average Capacity 9 | 7 9 10 Most Carried 10 | 8 10 10 Average Carried 8 | 5 8 9 Final Capacity 10 | 8 10 10 Final Carried 10 | 8 10 9 Class Distribution -------------------- 100% | Mutant Dominant Class ---------------- Mutant | -10/Materials Mutant | -10/Mines Resources | -11 -10 -10 ----------- Run | Jun Mat Min Matter Collected 681 | 260 342 79 Remotely . | . . . Salvage Created 889 | 154 605 130 Parts 86 | 14 61 11 Haulers Intercepted 1 | . 1 . Recyclers Shooed . | . . . Parts Field Recycled . | . . . Retrieved Matter . | . . . Parts Self-Destructed . | . . . Prevented . | . . . Kills | -11 -10 -10 ------- Run | Jun Mat Min Combat Hostiles Destroyed 15 | . 15 . Guns 4 | . 4 . Cannons 1 | . 1 . AOE 10 | . 10 . Classes Destroyed 9 | 3 6 . Worker 6 | 1 4 1 Builder 2 | . 2 . Tunneler 6 | 5 . 1 Hauler 1 | . 1 . Recycler 2 | 1 1 . Mechanic 1 | . 1 . Watcher 2 | . 2 . Swarmer 6 | . 6 . Grunt 9 | . 9 . Thug 1 | . . 1 Best Kill Streak 13 | 3 13 1 Combat Bots Only 5 | . 5 . Max Kills in Single Turn 4 | 1 4 1 Gunslinging . | . . . Exploded 3 | . 3 . Melee . | . . . Uniques/NPCs Destroyed . | . . . Combat | -11 -10 -10 -------- Run | Jun Mat Min Damage Taken 836 | . 409 427 Core 264 | . 113 151 Absorbed by Shields . | . . . Core Remaining (%) 100 | 100 . . Volleys Fired 71 | 20 37 14 Largest 2 | 2 2 2 Hottest 95 | 90 90 95 Shots Fired 133 | 40 65 28 Gun 93 | 40 47 6 Cannon . | . . . Launcher 11 | . 11 . Special 29 | . 7 22 Kinetic 2 | . . 2 Thermal 120 | 40 54 26 Explosive 11 | . 11 . Electromagnetic . | . . . Robot Hit Streak 12 | 12 8 5 Robot Miss Streak 6 | 2 2 6 Penetration Max . | . . . Secondary Targets . | . . . Shots Hit Robots 81 | 28 37 16 Core Hits 49 | 8 36 5 Critical Kills . | . . . Critical Parts Destroyed . | . . . Critical Strikes 4 | 1 3 . Burn 4 | 1 3 . Melee Attacks . | . . . Impact . | . . . Slashing . | . . . Piercing . | . . . Sneak Attacks . | . . . Combat Hostiles . | . . . Follow-up Attacks . | . . . Damage Inflicted 2073 | 333 1523 217 Guns 820 | 333 407 80 Cannons . | . . . Explosions 1081 | . 1081 . Melee . | . . . Ramming . | . . . Kinetic 12 | . . 12 Thermal 980 | 333 442 205 Explosive 1081 | . 1081 . Electromagnetic . | . . . Impact . | . . . Slashing . | . . . Piercing . | . . . Highest Corruption . | . . . Average Corruption . | . . . Corruption Purged . | . . . Corruption Blocked . | . . . Overload Shots . | . . . Overflow Damage 45 | . 45 . Projectiles . | . . . Explosions 45 | . 45 . Melee . | . . . Knockbacks . | . . . Impact . | . . . Kinetic . | . . . Secondary . | . . . Self-Inflicted Damage 59 | . 59 . Shots 4 | . 4 . Rammed . | . . . Targets Rammed . | . . . Kicked . | . . . Crushed . | . . . Highest Temperature 183 | 90 183 66 Average Temperature 43 | 37 49 29 Received Heat Transfer 182 | . 162 20 Siege Activations . | . . . Robots Corrupted . | . . . Combat Hostiles . | . . . Parts Fried . | . . . Impact Corruptions . | . . . Robots Melted . | . . . Combat Hostiles . | . . . Parts Melted 2 | 1 1 . Heat Transferred 2956 | 966 1410 580 Parts Sabotaged . | . . . Parts Stolen . | . . . Parts Stripped . | . . . Power Chain Reactions . | . . . Missiles Intercepted . | . . . Alert | -11 -10 -10 ------- Run | Jun Mat Min Peak Influence 472 | 35 472 135 Initial 125 | . 22 125 Average 161 | 13 209 119 Maximum Alert Level 2 | . 2 . Low Security (%) 76 | 100 59 100 Level 1 5 | . 9 . Level 2 18 | . 31 . Level 3 . | . . . Level 4 . | . . . Level 5 . | . . . High Security . | . . . Max Security . | . . . Squads Dispatched 4 | . 4 . Investigation 3 | . 3 . Extermination . | . . . Reinforcement 1 | . 1 . Assault . | . . . Garrison . | . . . Intercept . | . . . Searches Triggered . | . . . Construction Impeded . | . . . Haulers Reinforced . | . . . Active Scanning Responses . | . . . Cargo Convoy Interrupts . | . . . Stealth | -11 -10 -10 --------- Run | Jun Mat Min Distress Signals . | . . . Communications Jammed . | . . . Distress Signals . | . . . Times Spotted 37 | . 22 15 Peak Tracking Total 11 | . 4 11 Tactical Retreats 2 | . 1 1 Traps | -11 -10 -10 ------- Run | Jun Mat Min Traps Triggered 2 | . 2 . Indirectly . | . . . Trap Hack Attempts . | . . . Triggered . | . . . Disarmed . | . . . Reprogrammed . | . . . Reused . | . . . Traps Extracted . | . . . Installed . | . . . Triggered . | . . . Machines | -11 -10 -10 ---------- Run | Jun Mat Min Machines Disabled 5 | . 5 . Max in Single Turn 2 | . 2 . Machines Repaired . | . . . Machines Sabotaged . | . . . Overloaded Fab Kills . | . . . Hacking | -11 -10 -10 --------- Run | Jun Mat Min Machines Accessed 10 | . 9 1 Terminals 7 | . 7 . Fabricators . | . . . Repair Stations . | . . . Recycling Units 2 | . 2 . Scanalyzers . | . . . Garrison Access . | . . . Total Hacks 29 | . 28 1 Successful 18 | . 17 1 Failed 10 | . 10 . Catastrophic 1 | . 1 . Database Lockouts 1 | . 1 . Manual 14 | . 14 . Terminals 23 | . 23 . Fabricators . | . . . Repair Stations . | . . . Recycling Units 5 | . 5 . Scanalyzers . | . . . Garrison Access . | . . . Terminal Hacks 9 | . 8 1 Robot Analysis 2 | . 2 . Prototype ID Bank 2 | . 2 . Open Door 1 | . . 1 Terminal Index 1 | . 1 . Hauler Manifests 2 | . 2 . Zone Layout 1 | . 1 . Fabricator Hacks . | . . . Repair Station Hacks . | . . . Recycling Unit Hacks 2 | . 2 . Retrieve Components 2 | . 2 . Scanalyzer . | . . . Garrison Access Hacks . | . . . Unauthorized Hacks 7 | . 7 . Terminals 5 | . 5 . Track 1 | . 1 . Botnet 3 | . 3 . Operators 1 | . 1 . Fabricators . | . . . Repair Stations . | . . . Recycling Units 2 | . 2 . Reject 2 | . 2 . Scanalyzers . | . . . Garrison Access . | . . . Data Cores Recovered . | . . . Used . | . . . Hacking Detections 7 | . 7 . Full Trace Events 1 | . 1 . Feedback Events . | . . . Feedback Blocked . | . . . Robot Schematics Acquired . | . . . Robots Built . | . . . Authchips . | . . . Time . | . . . Total Robot Build Rating . | . . . Part Schematics Acquired . | . . . Parts Built . | . . . Authchips . | . . . Time . | . . . Total Part Build Rating . | . . . Parts Repaired . | . . . Time . | . . . Parts Recycled . | . . . Recycled Matter . | . . . Retrieved Matter . | . . . Retrieved Components . | . . . Parts Scanalyzed . | . . . Part Schematics Acquired . | . . . Parts Damaged . | . . . Bothacking | -11 -10 -10 ------------ Run | Jun Mat Min Used RIF Installer . | . . . Robots Hacked . | . . . Non-combat . | . . . Combat . | . . . Robot Hacks Applied . | . . . Relay Couplers Released . | . . . Fabnet Peak Effective % . | . . . Robots Rewired . | . . . Allies Hacked . | . . . Hacks Repelled . | . . . Allies | -11 -10 -10 -------- Run | Jun Mat Min Total Allies . | . . . Largest Group . | . . . Highest-Rated Group . | . . . Highest-Rated Ally . | . . . Total Orders . | . . . Ally Attacks . | . . . Total Damage . | . . . Kills . | . . . Allies Corrupted . | . . . Allies Melted . | . . . Intel | -11 -10 -10 ------- Run | Jun Mat Min Robot Analysis Total 2 | . 2 . Derelict Logs Recovered 1 | . . 1 Drone Launches . | . . . Drone Recoveries . | . . . Exploration | -11 -10 -10 ------------- Run | Jun Mat Min Turns Passed 1387 | 142 806 439 Spaces Moved 1033 | 66 623 344 Core 3 | 3 . . Treads . | . . . Legs . | . . . Wheels 1030 | 63 623 344 Hover . | . . . Flight . | . . . Fastest Speed 50 | 50 80 95 Average Speed 92 | 88 92 95 Slowest Speed 100 | 100 95 95 Overloaded Moves . | . . . Propulsion Burnouts . | . . . Robots Hopped . | . . . Cave-ins Triggered . | . . . Exploration Rate (%) 49 | 6 98 45 Regions Visited 2 Branch Regions 1 Pre-discovered Areas 1 | . . 1 Known Exits Taken . | . . . Unknown Exits Taken 2 | 1 1 . Scrap Searched 1 | . . 1 Spaces Dug . | . . . Terrain Destroyed 82 | . 82 . Melee . | . . . Projectile . | . . . AOE 82 | . 82 . Terrain Rammed . | . . . Walls Destroyed . | . . . Machines Disabled . | . . . Actions | -11 -10 -10 --------- Run | Jun Mat Min Total 1294 | 107 781 406 Wait 106 | 6 64 36 Move 1031 | 65 622 344 Hop . | . . . Pick Up 27 | 10 15 2 Fast Attach 6 | 4 2 . Attach 4 | 2 1 1 Detach . | . . . Swap 28 | . 22 6 Drop 20 | . 18 2 Fire 71 | 20 37 14 Melee . | . . . Ram . | . . . Kick . | . . . Crush . | . . . Escape Stasis . | . . . Rewire 1 | . . 1 Trap . | . . . Miscellaneous . | . . . Route ------- -11/Junkyard -10/Materials (discovered 5 exits: [*Mat x3] / *Min x2) -10/Mines (discovered 2 exits: [*Mat] / [*Exi]) History --------- Turn | Location | Event 17 | -11/Junkyard | Discovered new exit (range 16) 143 | -11/Junkyard | Entered Materials 299 | -10/Materials | Discovered new exit (range 12) 323 | -10/Materials | Build established: Mutant 335 | -10/Materials | Discovered new exit (range 10) 354 | -10/Materials | Central database locked down 450 | -10/Materials | Discovered new exit (range 6) 662 | -10/Materials | Discovered new exit (range 16) 843 | -10/Materials | Discovered new exit (range 6) 949 | -10/Materials | Entered Mines 954 | -10/Mines | Met a Derelict bent on vengeance 1115 | -10/Mines | Discovered new exit (range 5) 1180 | -10/Mines | Learned 2 Materials zone layouts 1200 | -10/Mines | Deemed a non-threat by the Exiles lab entrance 1200 | -10/Mines | Discovered new exit (range 5) 1218 | -10/Mines | Learned location of Storage (-9) 1241 | -10/Mines | Met a Derelict who couldn't figure out how to use a Trap Extractor 1352 | -10/Mines | Assembled infested the area 1377 | -10/Mines | Core integrity fell below 50% 1385 | -10/Mines | Core integrity fell below 20% 1388 | -10/Mines | Destroyed by D-53 Grenadier with Mini Grenade Launcher Last Messages --------------- 01353_ R-06 Scavenger system corrupted by crushing effect. 01353_ R-06 Scavenger knocked back. 01371_ T-07 Excavator suffers critical hit (Destroy). 01371_ T-07 Excavator destroyed. 01375_ as-92103 destroyed. 01375_ as-86693 destroyed. 01375_ as-51422 destroyed. 01376_ as-58532 destroyed. 01377_ as-52044 destroyed. 01377_ as-21410 destroyed. 01378_ as-63060 destroyed. 01378_ Plasma Cutter destroyed. 01380_ as-50322 destroyed. 01380_ as-39900 destroyed. 01380_ Wheel destroyed. 01382_ Plasma Cutter destroyed. 01384_ The unstable cave ceiling collapses. 01384_ Lgt. Ion Engine destroyed. 01384_ Plasma Cutter destroyed. 01385_ The unstable cave ceiling collapses. Map ----- +----------------------------------------------------+ | | | | | | | | | | | | | | | | | | | | | | | | | | | | | ?????????????????????????????????????????????????? | | ?#######?????????????????????????????????????????? | | ?# #?????????????????????????????????????????? | | ?# #?????????????????????????????????????????? | | ?# ####??????????????????????????????????????? | | ?# #?????????????????????#####????????????? | | ?# ## #????????????####?????# ###????????##? | | ?# ## #???????????## ####### #????????